bitfinex-derivatives/quotes_ETHF0:USTF0_20220106
["timestamp","ask_amount","ask_price","bid_price","bid_amount"]
[1641477350400,0.397182,3406.4,3406.3,0.6967]
[1641477351002,12.74,3406.5,3406.3,0.6967]
[1641477351199,12.74,3406.5,3406.3,0.65]
[1641477352202,12.74,3406.5,3406.4,0.70658478]
[1641477353203,12.74,3406.5,3406.2,0.98908811]
[1641477353702,0.397182,3406.4,3406.2,0.98908811]
[1641477354108,1.14371459,3406.4,3406.3,0.459982]
[1641477354303,0.74653259,3406.4,3406.3,1.067082]
[1641477354703,0.74653259,3406.4,3406.3,0.6071]
[1641477355705,13.88371459,3406.5,3406.3,0.0467]
[1641477356505,13.48653259,3406.5,3406.4,1.4046798]
[1641477356709,13.48653259,3406.5,3406.4,0.9446978]
[1641477357106,13.48653259,3406.5,3406.4,1.3418798]
[1641477357508,13.48653259,3406.5,3406.4,0.397182]
[1641477357710,12.74,3406.5,3406.4,0.397182]
[1641477358310,12.74,3406.5,3406.3,0.725]
[1641477358809,13.88371459,3406.5,3406.4,0.94517423]
[1641477359409,13.48653259,3406.5,3406.4,0.94517423]
[1641477361011,13.04438314,3406.5,3406.4,0.94517423]
[1641477361211,13.04438314,3406.5,3406.3,0.94517423]
[1641477361414,0.397182,3406.4,3406.3,0.94517423]
[1641477361613,12.74,3406.3,3405.5,1.76562012]
[1641477361816,14.74479,3405.6,3405.5,1.36562012]
[1641477362014,15.54939,3405.6,3405.5,1.36562012]
[1641477362212,17.00269,3405.6,3405.5,1.36562012]
[1641477362414,17.399872,3405.6,3404.8,5.24494986]
[1641477362614,17.399872,3405.6,3405.0,4.72895884]
[1641477362615,15.946572,3405.6,3405.0,4.72895884]
[1641477363416,17.399872,3405.6,3405.0,4.72895884]
[1641477363613,15.946572,3405.6,3405.0,4.72895884]
[1641477363814,15.946572,3405.6,3405.0,2.97718113]
[1641477363815,0.74683056,3405.5,3405.0,2.97718113]
[1641477364015,0.397182,3405.4,3404.9,0.0467]
[1641477364214,13.137182,3405.4,3404.9,0.0467]
[1641477364416,13.137182,3405.4,3404.8,2.00479]
[1641477365515,13.137182,3405.4,3405.2,0.0467]
[1641477366716,0.397182,3405.4,3405.2,0.0467]
[1641477367116,0.397182,3405.4,3405.3,0.0467]
[1641477367320,0.397182,3405.4,3404.6,0.0467]
[1641477367617,1.850482,3405.4,3404.6,0.0467]
[1641477367819,12.74,3404.9,3404.6,0.0467]
[1641477368017,12.74,3404.9,3404.0,0.0467]
[1641477368018,0.397182,3404.8,3404.0,0.0467]
[1641477368217,1.4533,3404.6,3403.9,2.00479]
[1641477368417,1.46859268,3404.7,3403.9,2.00279]
[1641477368617,0.397182,3404.5,3403.9,2.00279]
[1641477368917,0.397182,3404.5,3403.7,0.0467]
[1641477369218,0.397182,3404.5,3403.8,0.0467]
[1641477369419,1.4533,3404.3,3403.8,0.0467]
[1641477369618,0.397182,3404.2,3403.8,0.0467]
[1641477369818,12.74,3404.1,3403.8,0.0467]
[1641477370217,0.397182,3404.0,3403.8,0.0001]
[1641477370417,0.397182,3404.0,3402.7,1.5]
[1641477371118,0.397182,3404.0,3403.0,1.5]
[1641477371519,0.397182,3404.0,3402.7,1.5]
[1641477371923,0.397182,3404.0,3403.4,2.00479]
[1641477372122,0.397182,3404.0,3403.4,2.401972]
[1641477372522,0.397182,3404.0,3403.4,2.00479]
[1641477373325,11.14512917,3404.1,3403.4,2.00479]
[1641477373925,11.14512917,3404.1,3403.5,0.384472]
[1641477374125,2.00479,3404.2,3403.7,1.5]
[1641477374326,31.9647,3404.6,3403.5,0.970972]
[1641477374629,33.81089563,3404.9,3403.5,0.970972]
[1641477374826,1.912287,3404.9,3403.5,0.970972]
[1641477375227,12.74,3404.7,3403.5,0.970972]
[1641477375829,2.00479,3404.2,3403.5,0.970972]
[1641477376030,14.74479,3404.2,3403.5,1.368154]
[1641477376230,14.74479,3404.2,3403.5,0.5865]
[1641477376430,14.74479,3404.2,3403.4,2.00479]
[1641477377233,14.74479,3404.2,3403.5,0.384472]
[1641477377431,14.74479,3404.2,3403.5,0.781654]
[1641477378633,14.74479,3404.2,3403.5,0.397182]
[1641477378834,14.74479,3404.2,3403.4,2.00479]
[1641477379232,4.0,3403.9,3403.4,2.00479]
[1641477379432,16.24469,3404.2,3403.4,2.00479]
[1641477379433,12.74,3403.8,3403.4,2.00479]
[1641477379634,12.74,3403.8,3402.9,0.70544814]
[1641477379841,2.00479,3403.0,3402.9,0.70544814]
[1641477380036,15.38469,3403.0,3402.9,0.70544814]
[1641477380535,15.38469,3403.0,3402.7,0.38450505]
[1641477380937,3.564632,3402.9,3402.7,5.05e-06]
[1641477381137,12.74,3402.8,3402.7,5.05e-06]
[1641477381337,12.74,3402.8,3401.9,5.05e-06]
[1641477381937,2.00479,3402.4,3401.9,1.50000505]
[1641477382138,2.00479,3402.4,3402.0,0.781654]
[1641477382339,14.74479,3402.4,3402.0,0.781654]
[1641477382538,14.74479,3402.4,3402.0,0.397182]
[1641477382740,14.74479,3402.4,3401.6,2.47187158]
[1641477382940,12.74,3402.4,3401.6,3.97187158]
[1641477383241,12.74,3402.4,3401.6,2.47187158]
[1641477383840,14.74479,3402.4,3401.6,2.47187158]
[1641477384538,14.74479,3402.4,3401.7,0.384472]
[1641477385339,14.74479,3402.4,3401.6,2.00479]
[1641477385539,2.00479,3402.4,3401.6,2.00479]
[1641477385739,12.74,3402.3,3401.6,2.00479]
[1641477386841,14.74479,3402.4,3401.6,2.00479]
[1641477387945,12.74,3402.2,3401.6,2.00479]
[1641477388747,12.74,3402.3,3401.7,0.397182]
[1641477388945,2.00479,3402.4,3401.7,1.183782]
[1641477389146,2.00479,3402.4,3401.7,2.683782]
[1641477389346,0.4406,3402.9,3401.7,1.183782]
[1641477389550,0.4406,3402.9,3402.1,1.5]
[1641477389747,1.46912343,3403.4,3402.2,0.397182]
[1641477389949,12.74,3403.3,3402.7,2.00479]
[1641477390147,12.74,3403.3,3402.7,2.66079]
[1641477391347,12.74,3403.3,3402.7,3.057972]
[1641477394451,12.74,3403.3,3402.7,2.66079]
[1641477394756,12.74,3403.3,3402.8,0.781654]
[1641477396151,12.74,3403.3,3402.8,0.397182]
[1641477396751,12.74,3403.3,3402.8,0.781654]
[1641477397149,12.74,3403.3,3402.8,0.397182]
[1641477399656,12.74,3403.3,3402.7,2.00479]
[1641477399858,12.74,3403.3,3402.7,2.389262]
[1641477400057,12.74,3403.3,3402.7,2.00479]
[1641477401758,12.74,3403.3,3402.7,2.389262]
[1641477402665,12.74,3403.3,3402.7,2.00479]
[1641477403363,12.74,3403.3,3401.5,1.46912343]
[1641477403564,12.74,3403.3,3402.0,1.5]
[1641477403764,12.74,3403.3,3402.0,0.6485]
[1641477403966,2.00479,3402.7,3402.0,0.6485]
[1641477404165,2.00479,3402.7,3402.1,0.781654]
[1641477404768,0.01205225,3402.7,3402.1,0.781654]
[1641477405968,12.74,3403.3,3402.3,2.00479]
[1641477406567,12.74,3403.3,3402.3,2.80829]
[1641477406568,3.566791,3403.2,3402.3,2.80829]
[1641477406769,12.74,3403.1,3402.3,2.80829]
[1641477406969,12.74,3403.1,3402.4,0.397182]
[1641477411675,12.74,3403.3,3402.4,0.397182]
[1641477413778,12.74,3403.3,3402.4,1.281582]
[1641477415881,5.47869696,3403.4,3402.4,1.281582]
[1641477416080,2.00479,3404.1,3403.3,1.5]
[1641477416280,1.46872641,3404.3,3403.4,2.281654]
[1641477416479,1.46872641,3404.3,3403.4,0.781654]
[1641477417084,1.46872641,3404.3,3403.4,2.281654]
[1641477418084,1.46872641,3404.3,3404.2,4.00958]
[1641477418283,1.46872641,3404.3,3404.2,4.469562]
[1641477418486,13.1838,3404.9,3404.2,4.469562]
[1641477420486,13.1838,3404.9,3404.2,4.866744]
[1641477421284,13.1838,3404.9,3404.2,4.406762]
[1641477421485,13.1838,3404.9,3404.2,4.00958]
[1641477421684,14.2399,3404.7,3404.2,4.00958]
[1641477421886,1.46875445,3404.5,3402.7,2.19996585]
[1641477422084,13.4841,3404.7,3403.7,2.00479]
[1641477422085,1.4999,3404.4,3403.7,2.00479]
[1641477422986,14.74479,3404.7,3403.8,0.384472]
[1641477423385,13.74479,3404.7,3403.8,0.935772]
[1641477424085,11.74,3404.7,3404.3,2.00479]
[1641477428488,10.74,3404.7,3404.3,2.00479]
[1641477432891,9.99999999,3404.4,3402.6,0.62255566]
[1641477433090,5.4999,3402.7,3402.0,1.27740487]
[1641477433290,1.4999,3402.1,3401.7,2.94780336]
[1641477433489,0.781654,3402.6,3401.7,1.22790823]
[1641477433690,10.571309,3402.6,3401.7,0.17500823]
[1641477433891,5.4999,3401.8,3401.0,3.43055041]
[1641477434089,14.531234,3401.1,3401.0,3.43055041]
[1641477434290,14.531234,3401.1,3401.0,2.84155041]
[1641477434291,15.240534,3401.1,3401.0,2.84155041]
[1641477434691,15.240534,3401.1,3400.2,1.18057747]
[1641477435491,4.71888,3401.1,3400.2,2.68057747]
[1641477435691,17.45888,3401.1,3400.2,1.18057747]
[1641477435895,1.47002401,3401.0,3400.2,1.18057747]
[1641477436093,2.00479,3400.4,3400.3,0.781654]
[1641477436291,2.00479,3400.4,3400.3,1.241636]
[1641477436894,2.79069,3400.4,3400.3,1.241636]
[1641477437094,2.79069,3400.4,3399.6,2.00479]
[1641477437292,2.79069,3400.4,3399.7,0.397182]
[1641477438092,2.79069,3400.4,3399.8,0.384472]
[1641477438293,2.79069,3400.4,3399.9,0.397182]
[1641477438493,1.79069,3400.4,3399.9,0.397182]
[1641477438994,1.79069,3400.4,3399.9,1.897182]
[1641477439194,2.00479,3401.1,3400.2,1.5]
[1641477439407,1.4700521,3400.9,3400.2,0.6844]
[1641477439596,1.46966537,3401.8,3400.8,1.5]
[1641477439793,1.46966537,3401.8,3400.7,1.5]
[1641477439995,1.46966537,3401.8,3400.6,1.5]
[1641477440192,1.46966537,3401.8,3401.0,2.00479]
[1641477440393,1.469903,3401.3,3401.0,2.00479]
[1641477440593,1.469903,3401.3,3401.1,0.459982]
[1641477440994,1.46967617,3401.8,3401.2,1.5]
[1641477441194,1.46952067,3402.2,3401.7,1.5]
[1641477441393,14.20916876,3403.0,3402.1,1.5]
[1641477441597,14.20916876,3403.0,3402.1,0.6078]
[1641477441995,1.46928748,3402.7,3402.1,0.6078]
[1641477442395,1.85496202,3403.2,3402.4,1.5]
[1641477442396,1.46908243,3403.2,3402.4,1.5]
[1641477442597,1.46908243,3403.2,3403.0,1.5]
[1641477442796,1.46908243,3403.2,3403.0,0.761]
[1641477443602,1.46908243,3403.2,3403.1,0.459982]
[1641477443801,1.46908243,3403.2,3401.8,2.00479]
[1641477443802,6.96905365,3403.2,3401.8,0.6221]
[1641477443998,12.74,3402.5,3400.7,1.18076041]
[1641477444201,12.74,3402.1,3401.4,2.00479]
[1641477444597,1.46976906,3401.6,3401.4,2.00479]
[1641477444798,2.20166906,3401.6,3401.4,2.00479]
[1641477445998,2.20166906,3401.6,3401.5,0.459982]
[1641477446196,1.46976906,3401.6,3401.4,2.00479]
[1641477446599,2.00479,3402.5,3401.4,3.50479]
[1641477446802,1.4836603,3403.2,3401.4,2.80729]
[1641477446997,2.9835603,3403.2,3401.4,2.80729]
[1641477447602,0.98895384,3402.9,3401.5,1.5]
[1641477447801,1.46944509,3402.6,3401.4,2.00479]
[1641477448199,2.00479,3402.2,3401.4,2.00479]
[1641477448399,12.74,3402.1,3401.4,2.00479]
[1641477448700,1.46966321,3402.1,3401.4,2.00479]
[1641477449799,0.46723102,3402.0,3401.5,0.126381]
[1641477449999,0.98895384,3401.8,3401.5,0.126381]
[1641477450202,0.98895384,3401.8,3401.6,0.459982]
[1641477450401,0.98895384,3401.8,3401.5,0.126381]
[1641477451004,0.98895384,3401.7,3401.6,0.459982]
[1641477451806,1.45618486,3401.9,3401.6,0.586363]
[1641477452808,1.45618486,3402.0,3401.7,0.126381]
[1641477453610,1.7036146,3402.0,3401.6,0.94465123]
[1641477453909,14.4436146,3402.0,3401.3,0.94465123]
[1641477454309,12.74,3401.4,3401.3,0.94465123]
[1641477454909,12.74,3401.4,3401.1,1.07107819]
[1641477455110,1.47006074,3401.2,3401.1,1.07107819]
[1641477455910,1.47006074,3401.2,3401.1,0.94465123]
[1641477456111,1.93729176,3401.2,3401.1,0.94465123]
[1641477456312,1.93729176,3401.2,3400.6,0.94465123]
[1641477456514,1.93729176,3401.2,3400.6,1.72630523]
[1641477456913,0.46723102,3401.2,3400.6,1.32912323]
[1641477457114,1.93729392,3401.2,3400.6,1.32912323]
[1641477457513,1.93729392,3401.2,3400.4,2.00479]
[1641477457514,0.99671199,3400.8,3400.5,0.12645084]
[1641477457813,0.99671199,3400.8,3400.6,0.459982]
[1641477458012,0.99671199,3400.8,3400.5,0.12645084]
[1641477458619,0.99671199,3400.7,3400.6,1.959982]
[1641477458819,0.99671199,3400.7,3400.6,0.459982]
[1641477459622,0.99671199,3400.7,3400.6,0.58643284]
[1641477459820,0.99671199,3400.7,3400.6,0.12645084]
[1641477460420,1.23638358,3401.0,3400.6,1.5]
[1641477460622,1.23638358,3400.8,3400.4,2.00479]
[1641477460822,1.23638358,3400.8,3400.6,1.5]
[1641477461421,1.23638358,3400.8,3400.7,1.5]
[1641477461825,1.23638358,3400.9,3400.7,1.959982]
[1641477462225,1.23638358,3400.9,3400.7,1.5]
[1641477462725,0.46723102,3401.1,3400.7,1.5]
[1641477462726,1.23638358,3401.0,3400.7,1.5]
[1641477462923,1.23638358,3401.0,3400.8,0.459982]
[1641477463223,1.23638358,3401.0,3400.5,0.397182]
[1641477463824,1.23638358,3401.0,3400.4,2.94944123]
[1641477464025,12.74,3401.2,3400.4,2.00479]
[1641477465124,12.74,3401.2,3400.7,1.5]
[1641477465325,12.74,3401.2,3400.4,2.00479]
[1641477465526,12.74,3401.2,3400.8,1.5]
[1641477465725,1.47001968,3401.3,3400.8,1.5]
[1641477465932,1.47001968,3401.3,3400.7,0.7764]
[1641477466130,1.47006074,3401.2,3400.7,1.173582]
[1641477466327,2.00479,3401.5,3400.7,1.558054]
[1641477466727,1.46986195,3401.6,3400.7,1.558054]
[1641477468330,1.46986195,3401.6,3401.4,2.00479]
[1641477468731,1.46986195,3401.6,3401.2,0.397182]
[1641477468930,1.46986195,3401.6,3400.4,2.00479]
[1641477470331,1.46986195,3401.6,3401.0,2.00479]
[1641477470732,1.46986195,3401.6,3401.0,2.401972]
[1641477470934,1.46986195,3401.6,3401.2,1.5]
[1641477471133,1.46986195,3401.6,3401.0,2.401972]
[1641477471532,1.46986195,3401.6,3401.0,4.286444]
[1641477471731,1.46986195,3401.6,3401.0,2.786444]
[1641477472134,1.46986195,3401.6,3401.0,2.401972]
[1641477473134,1.46986195,3401.6,3401.1,1.5]
[1641477473333,1.46986195,3401.6,3401.0,2.401972]
[1641477473734,1.46986195,3401.6,3401.0,2.00479]
[1641477474334,1.47006723,3401.2,3401.0,2.00479]
[1641477476237,1.47006723,3401.2,3401.0,3.50479]
[1641477476440,12.74,3401.5,3401.0,2.00479]
[1641477476737,12.74,3401.5,3401.0,2.401972]
[1641477478939,2.00479,3401.6,3401.3,1.5]
[1641477479139,2.00479,3401.6,3401.5,1.5]
[1641477479341,2.00479,3401.6,3401.4,0.397182]
[1641477479541,2.00479,3401.6,3401.0,3.50479]
[1641477479740,2.00479,3401.6,3401.1,0.397182]
[1641477480143,2.00479,3401.6,3401.0,2.00479]
[1641477480544,14.74479,3401.6,3401.0,2.00479]
[1641477480743,14.74479,3401.6,3399.9,1.46979066]
[1641477480744,14.74479,3401.6,3400.2,0.6221]
[1641477480942,2.00479,3401.6,3400.3,1.5]
[1641477481143,12.74,3401.5,3400.2,0.6221]
[1641477481348,12.74,3401.5,3400.2,2.1221]
[1641477481545,2.00479,3401.6,3400.2,2.1221]
[1641477481943,2.00479,3401.6,3400.2,0.6221]
[1641477482144,2.00479,3401.6,3400.2,2.1221]
[1641477482344,2.00479,3401.6,3400.7,2.00479]
[1641477482946,0.73717751,3403.0,3401.5,1.5]
[1641477483150,0.73717751,3403.0,3402.9,1.5]
[1641477483345,0.16417751,3403.0,3402.9,3.363136]
[1641477483546,0.01997334,3403.2,3402.9,1.863136]
[1641477483947,0.01997334,3403.2,3403.1,1.5]
[1641477484147,0.01997334,3403.2,3403.1,0.857164]
[1641477484349,0.73437935,3404.1,3403.1,4.866744]
[1641477484750,12.74,3403.6,3403.1,4.00958]
[1641477484951,13.3484,3403.6,3403.1,4.00958]
[1641477485349,1.4690371,3403.5,3403.1,4.00958]
[1641477485549,1.4999,3403.3,3401.6,1.4690371]
[1641477485855,1.4999,3403.3,3401.2,1.46903711]
[1641477485856,12.74,3402.9,3401.2,1.46923352]
[1641477486050,1.46940839,3402.7,3400.8,33.6006]
[1641477486251,1.4692659,3403.0,3401.1,1.4692659]
[1641477486450,2.00479,3403.1,3402.1,1.5]
[1641477486650,2.00479,3403.1,3402.1,0.7868]
[1641477486950,2.00479,3403.1,3402.1,2.2868]
[1641477487250,2.00479,3403.1,3402.1,0.7868]
[1641477487451,12.74,3403.8,3402.5,1.5]
[1641477487753,12.74,3403.8,3402.3,1.46874151]
[1641477487951,12.74,3403.8,3402.3,2.09084151]
[1641477488351,1.46874151,3404.2,3402.3,1.46874151]
[1641477488554,12.74,3403.7,3403.0,2.00479]
[1641477488752,2.00479,3403.8,3403.0,2.55239]
[1641477488951,1.46897884,3403.7,3403.0,2.55239]
[1641477489152,1.46897884,3403.7,3403.0,0.5476]
[1641477489751,1.46897884,3403.7,3403.0,0.944782]
[1641477490255,14.20897884,3403.7,3402.7,2.00479]
[1641477490451,2.00479,3403.4,3402.7,2.00479]
[1641477490652,14.74479,3403.4,3402.7,2.00479]
[1641477491654,2.00479,3403.4,3402.7,2.786444]
[1641477493458,12.74,3403.3,3402.7,2.786444]
[1641477493857,13.6009,3403.3,3402.7,2.786444]
[1641477494058,13.6009,3403.3,3402.7,2.00479]
[1641477494458,0.8609,3403.3,3402.7,2.389262]
[1641477494658,0.8609,3403.3,3402.7,2.786444]
[1641477495360,2.00479,3403.4,3402.7,2.786444]
[1641477496157,4.0,3403.3,3402.7,2.401972]
[1641477496357,4.7238,3403.3,3402.7,2.00479]
[1641477496558,4.0,3403.0,3402.2,2.00479]
[1641477496758,1.46950556,3402.5,3401.2,34.04567669]
[1641477496957,16.74,3402.4,3401.2,0.94507669]
[1641477497358,16.74,3402.4,3401.1,0.94507669]
[1641477497862,2.10570556,3402.5,3401.1,0.94507669]
[1641477498059,14.84570556,3402.5,3401.1,0.94507669]
[1641477498260,2.10570556,3402.5,3401.1,0.94507669]
[1641477498460,3.47429556,3402.5,3401.7,2.00479]
[1641477498661,3.47429556,3402.5,3401.8,0.397182]
[1641477500763,16.21429556,3402.5,3401.8,0.397182]
[1641477500963,16.21429556,3402.5,3401.7,2.00479]
[1641477500964,1.46971289,3402.0,3401.7,2.00479]
[1641477501162,14.74479,3402.5,3401.7,2.00479]
[1641477501566,1.46954659,3402.4,3401.4,2.00479]
[1641477501863,12.74,3402.3,3401.4,2.00479]
[1641477502064,16.345664,3402.3,3401.4,2.00479]
[1641477502363,1.4999,3401.5,3400.7,0.94507669]
[1641477502563,12.74,3401.4,3400.3,2.00479]
[1641477504164,4.0,3401.3,3400.3,2.00479]
[1641477504364,1.47009964,3401.1,3400.3,2.00479]
[1641477504662,14.74479,3401.0,3400.3,2.00479]
[1641477504865,2.00479,3401.0,3400.3,2.389262]
[1641477505065,2.00479,3401.0,3400.3,2.786444]
[1641477505264,1.47009964,3401.1,3400.3,2.401972]
[1641477505865,2.00479,3401.5,3400.3,2.401972]
[1641477506065,14.74479,3401.5,3400.3,2.401972]
[1641477506567,14.74479,3401.5,3400.9,2.00479]
[1641477506766,2.00479,3401.5,3400.9,2.00479]
[1641477507271,14.74479,3401.5,3400.9,2.00479]
[1641477507472,14.74479,3401.5,3400.3,2.00479]
[1641477507772,2.00479,3401.5,3400.3,2.00479]
[1641477508373,12.74,3401.4,3400.3,2.00479]
[1641477508572,2.00479,3400.9,3400.3,2.00479]
[1641477509172,2.00479,3400.9,3400.4,0.384472]
[1641477510173,14.74479,3400.9,3400.4,0.384472]
[1641477510373,14.74479,3400.9,3400.3,2.00479]
[1641477512875,14.74479,3400.9,3400.3,2.389262]
[1641477513481,14.74479,3400.9,3400.3,2.786444]
[1641477513874,14.74479,3400.9,3400.3,2.00479]
[1641477514076,14.74479,3400.9,3400.1,0.71244343]
[1641477514275,12.74,3400.1,3399.9,0.94507669]
[1641477514474,4.00958,3400.0,3399.2,0.62324477]
[1641477514674,12.74,3399.5,3399.2,0.62324477]
[1641477515881,12.74,3399.5,3398.8,0.46756764]
[1641477516279,12.74,3399.5,3398.9,0.781654]
[1641477516575,14.74479,3399.5,3398.9,0.781654]
[1641477516776,2.00479,3399.5,3398.9,0.781654]
[1641477517177,2.00479,3400.0,3398.9,0.781654]
[1641477517178,2.00479,3400.0,3398.9,1.381154]
[1641477517376,2.00479,3400.0,3399.6,1.5]
[1641477517576,2.00479,3400.0,3399.7,0.397182]
[1641477517776,2.00479,3400.0,3399.8,0.459982]
[1641477517978,12.74,3400.7,3399.9,0.397182]
[1641477518176,1.47008019,3401.1,3399.9,0.397182]
[1641477518380,1.47007155,3401.2,3399.9,0.397182]
[1641477518576,2.00479,3400.4,3399.9,0.397182]
[1641477518777,2.00479,3400.4,3400.0,0.384472]
[1641477519577,2.00479,3400.4,3400.1,0.397182]
[1641477519876,2.00479,3400.4,3400.2,0.459982]
[1641477520077,2.00479,3400.4,3400.3,0.397182]
[1641477520277,2.00479,3400.8,3400.3,1.897182]
[1641477520478,1.46972801,3402.3,3400.7,2.96941702]
[1641477520677,2.00479,3402.0,3401.2,2.00479]
[1641477520884,2.00479,3402.0,3401.3,0.781654]
[1641477521682,2.00479,3402.0,3401.3,0.397182]
[1641477522080,12.74,3401.9,3401.2,2.00479]
[1641477522282,2.84179,3402.0,3401.2,2.00479]
[1641477522580,2.00479,3401.3,3400.4,2.00479]
[1641477522781,2.56149,3401.3,3400.4,2.00479]
[1641477523385,12.74,3401.2,3400.4,2.00479]
[1641477523582,1.56149,3401.3,3400.5,0.781654]
[1641477523983,12.74,3401.2,3400.5,0.781654]
[1641477524184,1.00479,3401.3,3400.5,0.781654]
[1641477525782,12.74,3401.2,3400.5,0.781654]
[1641477527687,1.00479,3401.3,3400.5,0.781654]
[1641477528592,1.00479,3401.3,3401.2,1.0]
[1641477528891,1.4697993,3401.8,3401.2,2.248372]
[1641477529089,12.74,3402.4,3401.2,2.248372]
[1641477529689,1.46969561,3402.0,3401.2,2.248372]
[1641477529892,14.20969561,3402.0,3401.2,1.8639]
[1641477530290,12.74,3402.0,3401.2,1.8639]
[1641477530492,1.46977338,3401.8,3401.2,1.8639]
[1641477530691,14.20977338,3401.8,3401.2,2.261082]
[1641477531093,1.46977338,3401.8,3401.2,2.261082]
[1641477531291,2.00479,3401.9,3401.2,2.645554]
[1641477531892,12.74,3401.8,3401.2,2.645554]
[1641477532091,12.74,3401.8,3401.2,2.261082]
[1641477532490,12.74,3401.8,3401.2,1.8639]
[1641477532690,14.74479,3401.3,3401.2,1.0]
[1641477532891,2.00479,3401.3,3400.4,2.00479]
[1641477533290,1.00479,3401.3,3400.4,2.00479]
[1641477533693,0.00479,3401.3,3400.4,2.00479]
[1641477534695,0.00479,3401.3,3400.4,4.00958]
[1641477535798,2.00479,3401.9,3400.4,4.00958]
[1641477536398,12.74,3401.8,3400.4,4.72579663]
[1641477536598,2.00479,3401.9,3401.1,2.00479]
[1641477536798,2.00479,3401.9,3401.2,0.397182]
[1641477537197,2.00479,3401.9,3401.2,0.781654]
[1641477537398,0.74313236,3402.1,3401.2,0.781654]
[1641477537399,0.74313236,3402.1,3401.4,1.5]
[1641477537598,0.74313236,3402.2,3401.5,0.397182]
[1641477537999,0.74313236,3402.2,3401.6,1.5]
[1641477538198,0.74313236,3402.2,3401.7,0.397182]
[1641477538599,0.74313236,3402.2,3402.1,6.50958]
[1641477538801,0.74313236,3402.2,3402.1,7.366744]
[1641477538999,0.98867097,3402.4,3402.1,7.366744]
[1641477539199,0.74313236,3403.0,3402.1,7.366744]
[1641477539403,0.74313236,3403.0,3402.2,0.384472]
[1641477539600,0.74313236,3403.0,3402.3,0.397182]
[1641477540600,0.74313236,3403.0,3402.1,5.00958]
[1641477540601,12.74,3402.7,3402.1,3.00479]
[1641477540801,14.20938464,3402.7,3402.1,3.00479]
[1641477541803,14.952517,3402.7,3402.1,3.00479]
[1641477542403,1.4999,3402.6,3402.1,1.0]
[1641477542601,23.71917561,3402.2,3401.0,2.72100663]
[1641477542802,19.09007561,3402.2,3401.0,2.00479]
[1641477543001,0.010802,3402.1,3401.0,2.00479]
[1641477543602,22.10087761,3402.2,3401.0,2.00479]
[1641477544006,11.750802,3401.9,3401.0,2.00479]
[1641477544703,11.750802,3401.7,3401.0,2.00479]
[1641477544904,15.750802,3401.7,3401.0,2.00479]
[1641477545104,1.46986195,3401.6,3401.0,2.00479]
[1641477546910,1.46986195,3401.6,3401.0,2.786444]
[1641477547809,15.750802,3401.7,3401.0,2.786444]
[1641477548010,0.74313236,3402.1,3401.1,1.5]
[1641477548209,0.74313236,3402.1,3401.3,1.5]
[1641477548411,0.74313236,3402.1,3401.5,1.5]
[1641477548611,0.74313236,3402.1,3402.0,2.00479]
[1641477548811,0.74313236,3402.1,3402.0,2.849244]
[1641477549015,1.48294438,3402.2,3402.0,3.246426]
[1641477549615,1.48294438,3402.2,3402.0,2.00479]
[1641477550619,14.74479,3402.7,3402.0,2.00479]
[1641477551817,1.48294438,3402.5,3402.0,2.401972]
[1641477552617,12.74,3402.5,3402.0,2.401972]
[1641477553617,2.10612255,3402.6,3402.0,2.401972]
[1641477553917,3.09191378,3403.3,3402.5,2.96824983]
[1641477554122,3.09191378,3403.3,3403.2,1.5]
[1641477554417,3.09191378,3403.3,3403.2,2.496782]
[1641477554616,3.09191378,3403.3,3403.2,2.893964]
[1641477554823,3.08991378,3403.3,3403.2,5.87896322]
[1641477555024,3.08991378,3403.3,3403.2,4.00958]
[1641477555218,3.08991378,3403.3,3403.2,4.469562]
[1641477555418,3.08991378,3403.3,3403.2,4.00958]
[1641477555619,7.71047305,3404.1,3403.2,4.00958]
[1641477555819,9.17927065,3404.1,3403.2,4.00958]
[1641477556029,16.16377725,3403.6,3403.2,4.47669102]
[1641477556221,12.74,3403.6,3403.2,4.47669102]
[1641477556624,2.00479,3404.4,3403.2,4.47669102]
[1641477557224,2.00479,3404.4,3403.2,4.00958]
[1641477557424,10.35913919,3405.1,3403.2,5.47794194]
[1641477557623,11.85903919,3405.1,3403.2,5.47794194]
[1641477557923,1.4999,3404.9,3403.2,4.00958]
[1641477558522,1.4999,3404.9,3403.2,4.72591492]
[1641477558722,1.4999,3404.9,3404.4,2.00479]
[1641477559125,1.4999,3404.7,3404.4,2.00479]
[1641477559322,15.70850562,3404.5,3403.2,0.71633492]
[1641477559523,14.20860562,3404.5,3403.2,0.71633492]
[1641477559926,12.74,3404.5,3403.2,0.71633492]
[1641477560524,12.74,3404.5,3403.4,0.71633492]
[1641477560724,12.74,3404.5,3403.6,2.00479]
[1641477561326,14.20860993,3404.5,3403.6,2.00479]
[1641477561727,14.20860993,3404.5,3403.6,2.72112492]
[1641477562324,15.70850993,3404.5,3403.6,2.72112492]
[1641477563126,17.20004529,3404.5,3403.6,2.00479]
[1641477563326,15.70014529,3404.5,3403.6,2.00479]
[1641477563926,17.20004529,3404.5,3403.6,2.00479]
[1641477564126,1.4999,3404.2,3403.6,2.00479]
[1641477564329,12.74,3404.1,3403.6,2.00479]
[1641477565129,15.70888963,3403.7,3403.3,0.71633492]
[1641477565332,1.4999,3403.6,3403.2,0.71572996]
[1641477565531,0.015106,3403.6,3403.2,0.71572996]
[1641477565932,1.4999,3403.8,3403.2,0.71572996]
[1641477566132,1.468899,3403.9,3403.2,0.71572996]
[1641477566531,1.468899,3403.9,3403.2,0.397182]
[1641477566732,16.26361,3403.8,3403.2,0.397182]
[1641477566935,0.07785748,3403.5,3403.2,0.397182]
[1641477567133,0.99437895,3403.3,3403.2,0.397182]